bitfinex/quotes_BTCUSD_20260110
["timestamp","ask_amount","ask_price","bid_price","bid_amount"]
[1768055870615,0.01103886,90589.0,90575.0,0.06865854]
[1768055870825,0.01103898,90588.0,90575.0,0.06865854]
[1768055871483,0.01103911,90587.0,90575.0,0.06865854]
[1768055872263,0.01103923,90586.0,90575.0,0.06865854]
[1768055872508,0.01103911,90587.0,90575.0,0.06865854]
[1768055872706,0.01103898,90588.0,90575.0,0.06865854]
[1768055875070,0.01103911,90587.0,90575.0,0.06865854]
[1768055875286,0.01103898,90588.0,90575.0,0.06865854]
[1768055875485,0.01103886,90589.0,90576.0,0.01104045]
[1768055875602,0.01103886,90589.0,90575.0,0.07969911]
[1768055876236,0.05735055,90590.0,90576.0,0.01104045]
[1768055876839,0.04631181,90590.0,90577.0,0.01104033]
[1768055880674,0.04631181,90590.0,90575.0,0.07969911]
[1768055880675,0.01103886,90589.0,90575.0,0.07969911]
[1768055881151,0.05735055,90590.0,90576.0,0.01104045]
[1768055884153,0.05735055,90590.0,90577.0,0.01104033]
[1768055884728,0.04631181,90590.0,90577.0,0.01104033]
[1768055885081,0.05735055,90590.0,90577.0,0.01104033]
[1768055885234,0.04631181,90590.0,90577.0,0.01104033]
[1768055887121,0.05735055,90590.0,90577.0,0.01104033]
[1768055887410,0.04631181,90590.0,90577.0,0.01104033]
[1768055889602,0.04631181,90590.0,90578.0,0.0110402]
[1768055889816,0.02212,90592.0,90579.0,0.01104008]
[1768055890462,0.0331585,90592.0,90578.0,0.0110402]
[1768055890880,0.02212,90592.0,90578.0,0.0110402]
[1768055891298,0.02212,90592.0,90580.0,0.01103996]
[1768055891500,0.02212,90592.0,90579.0,0.01104008]
[1768055891913,0.02212,90592.0,90580.0,0.01103996]
[1768055892525,0.02212,90592.0,90581.0,0.01103984]
[1768055892654,0.02212,90592.0,90580.0,0.01103996]
[1768055893608,0.02212,90592.0,90581.0,0.01103984]
[1768055893751,0.02212,90592.0,90580.0,0.01103996]
[1768055893950,0.01103862,90591.0,90577.0,0.02208053]
[1768055894222,0.0331585,90592.0,90577.0,0.02208053]
[1768055894754,0.0331585,90592.0,90578.0,0.0110402]
[1768055894958,0.02212,90592.0,90579.0,0.01104008]
[1768055895928,0.0331585,90592.0,90578.0,0.0110402]
[1768055896137,0.0331585,90592.0,90579.0,0.01104008]
[1768055896421,0.0331585,90592.0,90578.0,0.0110402]
[1768055896597,0.02212,90592.0,90579.0,0.01104008]
[1768055896793,0.02212,90592.0,90578.0,0.0110402]
[1768055897240,0.02212,90592.0,90580.0,0.01103996]
[1768055897835,0.02212,90592.0,90579.0,0.01104008]
[1768055898646,0.02212,90592.0,90580.0,0.01103996]
[1768055901285,0.02212,90592.0,90579.0,0.01104008]
[1768055901810,0.02212,90592.0,90580.0,0.01103996]
[1768055903832,0.0331585,90592.0,90579.0,0.01104008]
[1768055904079,0.02212,90592.0,90579.0,0.01104008]
[1768055904726,0.02212,90592.0,90580.0,0.01103996]
[1768055906005,0.02212,90592.0,90581.0,0.01103984]
[1768055906386,0.02212,90592.0,90580.0,0.01103996]
[1768055906704,0.02212,90592.0,90579.0,0.01104008]
[1768055906885,0.02212,90592.0,90577.0,0.06875554]
[1768055908045,0.02212,90592.0,90577.0,0.12395675]
[1768055908262,0.02212,90592.0,90579.0,0.01104008]
[1768055908811,0.02212,90592.0,90580.0,0.01103996]
[1768055909015,0.02212,90592.0,90579.0,0.01104008]
[1768055909814,0.02212,90592.0,90580.0,0.01103996]
[1768055910408,0.02212,90592.0,90579.0,0.01104008]
[1768055911090,0.02212,90592.0,90580.0,0.01103996]
[1768055911303,0.02212,90592.0,90577.0,0.06875554]
[1768055911501,0.02212,90592.0,90578.0,0.0110402]
[1768055911680,0.0331585,90592.0,90577.0,0.06875554]
[1768055911887,0.0331585,90592.0,90578.0,0.0110402]
[1768055912729,0.0331585,90592.0,90579.0,0.01104008]
[1768055913147,0.0331585,90592.0,90578.0,0.0110402]
[1768055913877,0.02212,90592.0,90578.0,0.0110402]
[1768055914665,0.02212,90592.0,90578.0,0.05953778]
[1768055914836,0.02202977,90592.0,90586.0,0.04849758]
[1768055915037,0.02202977,90592.0,90586.0,0.04834439]
[1768055916732,0.02202977,90592.0,90583.0,0.01103959]
[1768055917997,0.02202977,90592.0,90584.0,0.01103947]
[1768055918356,0.02202977,90592.0,90583.0,0.01103959]
[1768055918538,0.02202977,90592.0,90584.0,0.01103947]
[1768055920982,0.02202977,90592.0,90585.0,0.01103935]
[1768055921387,0.02202977,90592.0,90584.0,0.01103947]
[1768055922153,0.02202977,90592.0,90583.0,0.01103959]
[1768055922506,0.02202977,90592.0,90582.0,0.04849758]
[1768055923138,0.05900515,90597.0,90582.0,0.04849758]
[1768055923341,0.01103801,90596.0,90582.0,0.0595373]
[1768055923706,0.01103813,90595.0,90582.0,0.04849758]
[1768055923915,0.01103801,90596.0,90582.0,0.04849758]
[1768055924383,0.01103813,90595.0,90582.0,0.04849758]
[1768055924625,0.01103801,90596.0,90582.0,0.0595373]
[1768055925231,0.01103813,90595.0,90582.0,0.04849758]
[1768055925611,0.01103813,90595.0,90582.0,0.0595373]
[1768055926124,0.01103801,90596.0,90582.0,0.04849758]
[1768055928056,0.01103813,90595.0,90584.0,0.04849758]
[1768055928265,0.01103801,90596.0,90584.0,0.04849758]
[1768055929164,0.01103789,90597.0,90584.0,0.04849758]
[1768055930271,0.06622776,90597.0,90584.0,0.04849758]
[1768055930767,0.01103789,90597.0,90584.0,0.04849758]
[1768055931419,0.01103801,90596.0,90584.0,0.04849758]
[1768055931595,0.01103789,90597.0,90584.0,0.04849758]
[1768055931948,0.01103801,90596.0,90584.0,0.04849758]
[1768055933353,0.01103801,90596.0,90582.0,0.01103972]
[1768055934143,0.0576758,90597.0,90583.0,0.01103959]
[1768055934898,0.01103801,90596.0,90582.0,0.01103972]
[1768055935867,0.0576758,90597.0,90583.0,0.01103959]
[1768055936837,0.0576758,90597.0,90584.0,0.01103947]
[1768055936997,0.0576758,90597.0,90582.0,0.01103972]
[1768055937432,0.05767592,90596.0,90583.0,0.01103959]
[1768055937634,0.04663791,90596.0,90583.0,0.01103959]
[1768055938924,0.04663791,90596.0,90582.0,0.01103972]
[1768055939348,0.05767592,90596.0,90582.0,0.01103972]
[1768055940178,0.04663791,90596.0,90582.0,0.01103972]
[1768055940328,0.05767592,90596.0,90582.0,0.01103972]
[1768055941772,0.05767592,90596.0,90580.0,0.01103801]
[1768055941970,0.0110385,90592.0,90580.0,0.01103801]
[1768055942168,0.05767629,90593.0,90580.0,0.01103801]
[1768055942369,0.05767629,90593.0,90580.0,0.01086124]
[1768055944502,0.04663791,90593.0,90580.0,0.0219012]
[1768055944674,0.04663791,90593.0,90580.0,0.24152205]
[1768055944881,0.05767629,90593.0,90580.0,0.23048209]
[1768055945151,0.05767629,90593.0,90580.0,0.24152205]
[1768055945414,0.05767629,90593.0,90580.0,0.23048209]
[1768055947766,0.0110385,90592.0,90580.0,0.23048209]
[1768055951557,0.01103862,90591.0,90580.0,0.23048209]
[1768055951794,0.05697286,90592.0,90580.0,0.23048209]
[1768055951988,0.01103862,90591.0,90580.0,0.23048209]
[1768055952192,0.05697286,90592.0,90580.0,0.23048209]
[1768055952365,0.01103862,90591.0,90580.0,0.23048209]
[1768055952805,0.05697286,90592.0,90580.0,0.22223515]
[1768055953008,0.01103862,90591.0,90580.0,0.22223515]
[1768055953208,0.01103862,90591.0,90580.0,0.21962085]
[1768055953412,0.01103874,90590.0,90581.0,0.03313088]
[1768055954223,0.01103886,90589.0,90581.0,0.03313088]
[1768055954646,0.01103874,90590.0,90581.0,0.03313088]
[1768055954864,0.01103898,90588.0,90581.0,0.03313088]
[1768055955114,0.01103886,90589.0,90581.0,0.03313088]
[1768055955319,0.05697298,90591.0,90581.0,0.03313088]
[1768055955897,0.01103874,90590.0,90581.0,0.03313088]
[1768055956618,0.05697298,90591.0,90581.0,0.03313088]
[1768055956799,0.01103874,90590.0,90581.0,0.03313088]
[1768055958657,0.0109984,90590.0,90581.0,0.03313088]
[1768055958806,0.05697298,90591.0,90581.0,0.03313088]
[1768055960231,0.04593436,90591.0,90581.0,0.03313088]
[1768055961062,0.05697298,90591.0,90581.0,0.03313088]
[1768055961264,0.04593436,90591.0,90581.0,0.03313088]
[1768055961603,0.05697298,90591.0,90581.0,0.03313088]
[1768055962003,0.04593436,90591.0,90581.0,0.03313088]
[1768055962426,0.05697298,90591.0,90581.0,0.03313088]
[1768055965038,0.04593436,90591.0,90581.0,0.03313088]
[1768055965658,0.05697298,90591.0,90581.0,0.03313088]
[1768055966928,0.05697298,90591.0,90581.0,0.03182035]
[1768055967683,0.01103874,90590.0,90581.0,0.03182035]
[1768055968274,0.01103874,90590.0,90581.0,0.08062204]
[1768055968506,0.01103886,90589.0,90582.0,0.04880169]
[1768055968700,0.01103886,90589.0,90581.0,0.03182035]
[1768055970436,0.01103886,90589.0,90575.0,0.03323823]
[1768055970952,0.01103886,90589.0,90576.0,0.03313088]
[1768055971484,0.01103911,90587.0,90576.0,0.03313088]
[1768055971687,0.00994877,90587.0,90576.0,0.03026628]
[1768055971915,0.05697334,90588.0,90576.0,0.03026628]
[1768055972119,0.04593436,90588.0,90576.0,0.03026628]
[1768055972595,0.05697334,90588.0,90576.0,0.03026628]
[1768055973076,0.01103911,90587.0,90576.0,0.03026628]
[1768055973460,0.01097323,90587.0,90576.0,0.03026628]
[1768055973655,0.06041086,90587.0,90576.0,0.03026628]
[1768055973877,0.06047783,90578.0,90575.0,7.766e-05]
[1768055974255,0.0110402,90578.0,90575.0,7.766e-05]
[1768055975086,0.04943763,90574.0,90572.0,0.00015097]
[1768055975289,0.04943763,90573.0,90572.0,0.00015097]
[1768055976097,0.01104057,90575.0,90572.0,0.00015097]
[1768055976659,0.0604782,90575.0,90572.0,0.00015097]
[1768055977113,0.04943763,90575.0,90572.0,0.00015097]
[1768055978003,0.01104057,90575.0,90572.0,0.00015097]
[1768055978213,0.01104045,90576.0,90573.0,0.0477139]
[1768055978562,0.01104033,90577.0,90573.0,0.0477139]
[1768055979394,0.01104045,90576.0,90573.0,0.0477139]
[1768055980533,0.01104057,90575.0,90572.0,0.00015097]
[1768055980750,0.0604782,90575.0,90572.0,0.00015097]
[1768055981547,0.0604782,90575.0,90572.0,0.00010586]
[1768055982512,0.01104069,90574.0,90567.0,0.0110402]
[1768055983055,0.0604782,90575.0,90567.0,0.0110402]
[1768055985294,0.04943763,90575.0,90567.0,0.0110402]
[1768055985498,0.0110402,90578.0,90567.0,0.0110402]
[1768055985849,0.01104045,90576.0,90567.0,0.0110402]
[1768055986230,0.01104033,90577.0,90567.0,0.0110402]
[1768055986432,0.01104045,90576.0,90567.0,0.0110402]
[1768055987039,0.01104033,90577.0,90567.0,0.0110402]
[1768055987788,0.01104045,90576.0,90568.0,0.0477139]
[1768055987987,0.01104045,90576.0,90567.0,0.0110402]
[1768055988186,0.01104045,90576.0,90568.0,0.0477139]
[1768055988406,0.01104057,90575.0,90567.0,0.0110402]
[1768055989173,0.01104069,90574.0,90567.0,0.0110402]
[1768055989408,0.01104081,90573.0,90567.0,0.0110402]
[1768055990411,0.01104093,90572.0,90567.0,0.0110402]
[1768055990767,0.01104081,90573.0,90567.0,0.0110402]
[1768055990968,0.01104093,90572.0,90567.0,0.0110402]
[1768055991176,0.06047856,90572.0,90565.0,0.00051721]
[1768055991398,0.04943763,90572.0,90565.0,0.00056387]
[1768055991741,0.01104069,90574.0,90565.0,0.00056387]
[1768055992427,0.01104057,90575.0,90565.0,0.00056387]
[1768055992659,0.01104069,90574.0,90565.0,0.00056387]
[1768055993099,0.01104081,90573.0,90565.0,0.00056387]
[1768055993520,0.01104069,90574.0,90565.0,0.00056387]
[1768055995202,0.05675575,90573.0,90565.0,0.00056387]
[1768055995794,0.04571494,90573.0,90565.0,0.00056387]
[1768055999010,0.05675575,90573.0,90565.0,0.00056387]
[1768055999752,0.04571494,90573.0,90565.0,0.00056387]
[1768056000300,0.05675575,90573.0,90565.0,0.00056387]
[1768056000512,0.01104093,90572.0,90565.0,0.00056387]
[1768056001286,0.05675575,90573.0,90565.0,0.00056387]
[1768056002271,0.01104093,90572.0,90565.0,0.00056387]
[1768056002469,0.05675636,90568.0,90565.0,0.00056387]
[1768056002657,0.05675661,90566.0,90563.0,0.0001517]
[1768056002856,0.05680327,90566.0,90563.0,0.0001517]
[1768056003546,0.11201166,90566.0,90563.0,0.0001517]
[1768056003951,0.05680327,90566.0,90563.0,0.0001517]
[1768056006410,4.666e-05,90566.0,90563.0,0.0001517]
[1768056006790,6.6e-07,90566.0,90563.0,0.0001517]
[1768056011235,0.01104233,90566.0,90563.0,0.0001517]
[1768056011647,6.6e-07,90566.0,90563.0,0.0001517]
[1768056012341,0.01104233,90566.0,90563.0,0.0001517]
[1768056012496,6.6e-07,90566.0,90563.0,0.0001517]
[1768056029516,6.6e-07,90566.0,90563.0,0.04936572]
[1768056029729,0.02039943,90575.0,90563.0,0.06040775]
[1768056029936,0.02039943,90575.0,90564.0,0.06025593]
[1768056030950,0.02039943,90575.0,90565.0,0.01104179]
[1768056032047,0.02039943,90575.0,90565.0,0.06025581]
[1768056032784,0.02039943,90575.0,90565.0,0.04921402]
[1768056033212,0.02039943,90575.0,90565.0,0.06025581]
[1768056034072,0.02039943,90575.0,90565.0,0.04921402]
[1768056038976,0.02039943,90575.0,90563.0,0.00020992]
[1768056039370,0.02039943,90575.0,90563.0,0.04639294]
[1768056040283,0.02039943,90575.0,90564.0,0.01104191]
[1768056041061,0.02039943,90575.0,90565.0,0.01104179]
[1768056041649,0.02039943,90575.0,90566.0,0.01104167]
[1768056042012,0.02039943,90575.0,90567.0,0.04618302]
[1768056045895,0.02039943,90575.0,90564.0,0.01104191]
[1768056046102,0.02039943,90575.0,90565.0,0.01104179]
[1768056046709,0.02039943,90575.0,90563.0,0.05743497]
[1768056047126,0.02039943,90575.0,90564.0,0.01104191]
[1768056047403,0.02039943,90575.0,90563.0,0.05743497]
[1768056048853,0.02039943,90575.0,90563.0,0.04639294]
[1768056049586,0.02039943,90575.0,90564.0,0.05722493]
[1768056050926,0.02039943,90575.0,90565.0,0.01104179]
[1768056052480,0.02039943,90575.0,90564.0,0.04618302]
[1768056052923,0.02039943,90575.0,90564.0,0.05722493]
[1768056053236,0.02039943,90575.0,90565.0,0.01104179]
[1768056055145,0.02039943,90575.0,90564.0,0.05722493]
[1768056057117,0.02039943,90575.0,90564.0,0.04618302]
[1768056057328,0.02039943,90575.0,90564.0,0.05722493]
[1768056057690,0.02039943,90575.0,90564.0,0.05717982]
[1768056058397,0.02039943,90575.0,90565.0,0.01104179]
[1768056060156,0.02039943,90575.0,90564.0,0.05717982]
[1768056060829,0.02039943,90575.0,90565.0,0.01104179]
[1768056062356,0.02039943,90575.0,90564.0,0.05717982]
[1768056062975,0.02039943,90575.0,90566.0,0.01104167]
[1768056063619,0.02039943,90575.0,90565.0,0.01104179]
[1768056063838,0.02039943,90575.0,90564.0,0.04613791]
[1768056064056,0.02039943,90575.0,90564.0,0.05717982]
[1768056064438,0.02039943,90575.0,90564.0,0.04613791]
[1768056066661,0.02039943,90575.0,90564.0,0.05713472]
[1768056066982,0.02039943,90575.0,90564.0,0.04609281]
[1768056069589,0.02039943,90575.0,90563.0,0.01125195]
[1768056069710,0.02039943,90575.0,90563.0,0.00020992]
[1768056070062,0.03144,90575.0,90563.0,0.00020992]
[1768056070269,0.02039943,90575.0,90563.0,0.00020992]
[1768056070610,0.03144,90575.0,90563.0,0.00020992]
[1768056070829,0.02039943,90575.0,90563.0,0.00020992]
[1768056072404,0.02039943,90575.0,90563.0,0.01125195]
[1768056072680,0.02039943,90575.0,90564.0,0.01104191]
[1768056073114,0.02039943,90575.0,90563.0,0.00020992]
[1768056073782,0.02039943,90575.0,90564.0,0.01104191]
[1768056074344,0.02039943,90575.0,90563.0,0.00020992]
[1768056074553,0.02039943,90575.0,90565.0,0.01104179]
[1768056074724,0.02039943,90575.0,90564.0,0.01104191]
[1768056074943,0.02039943,90575.0,90563.0,0.01125195]
[1768056075523,0.02039943,90575.0,90564.0,0.01104191]
[1768056077708,0.02039943,90575.0,90563.0,0.01125195]
[1768056077933,0.02039943,90575.0,90564.0,0.01104191]
[1768056078929,0.02039943,90575.0,90565.0,0.01104179]
[1768056079142,0.02039943,90575.0,90566.0,0.01104167]
[1768056079487,0.02039943,90575.0,90565.0,0.01104179]
[1768056080967,0.02039943,90575.0,90565.0,0.01099669]
[1768056081389,0.02039943,90575.0,90566.0,0.01104167]
[1768056082170,0.02039943,90575.0,90565.0,0.01099669]
[1768056082368,0.02039943,90575.0,90566.0,0.01104167]
[1768056082775,0.02039943,90575.0,90565.0,0.01099669]
[1768056083238,0.02039943,90575.0,90566.0,0.01104167]
[1768056084609,0.02039943,90575.0,90564.0,0.01104191]
[1768056084813,0.02039943,90575.0,90565.0,0.01104179]
[1768056086670,0.02039943,90575.0,90566.0,0.01104167]
[1768056087128,0.02039943,90575.0,90565.0,0.01104179]
[1768056087331,0.02039943,90575.0,90566.0,0.01104167]
[1768056087506,0.02039943,90575.0,90565.0,0.01104179]
[1768056087707,0.02039943,90575.0,90566.0,0.01104167]
[1768056087869,0.02039943,90575.0,90565.0,0.01104179]
[1768056088923,0.02039943,90575.0,90566.0,0.01104167]
[1768056090133,0.02039943,90575.0,90565.0,0.01104179]
[1768056090512,0.02039943,90575.0,90566.0,0.01104167]
[1768056091139,0.02039943,90575.0,90567.0,0.01104154]
[1768056091344,0.02039943,90575.0,90566.0,0.01104167]
[1768056091738,0.02039943,90575.0,90567.0,0.01104154]
[1768056092646,0.02039943,90575.0,90568.0,0.01104142]
[1768056093041,0.01959728,90575.0,90565.0,0.01104179]
[1768056093365,0.01959728,90575.0,90567.0,0.01104154]
[1768056093665,0.01959728,90575.0,90568.0,0.04934434]
[1768056104672,0.01959728,90575.0,90568.0,0.06038576]
[1768056104885,0.01959728,90575.0,90568.0,0.04934434]
[1768056110018,0.01959728,90575.0,90568.0,0.06038576]
[1768056110530,0.01959728,90575.0,90568.0,0.04934434]
[1768056113650,0.01959728,90575.0,90568.0,0.06038576]
[1768056113795,0.01959728,90575.0,90568.0,0.04934434]
[1768056114950,0.01959728,90575.0,90568.0,0.06038576]
[1768056115674,0.01959728,90575.0,90568.0,0.04934434]
[1768056123985,0.01959728,90575.0,90568.0,0.06038576]
[1768056127330,0.01959728,90575.0,90568.0,0.04934434]
[1768056137417,0.01959728,90575.0,90563.0,0.0554197]
[1768056137622,0.01959728,90575.0,90565.0,0.01104179]
[1768056137972,0.01959728,90575.0,90564.0,0.01104191]
[1768056138176,0.01959728,90575.0,90564.0,0.05821034]
[1768056138555,0.01959728,90575.0,90565.0,0.01104179]
[1768056139770,0.01959728,90575.0,90566.0,0.01104167]
[1768056143090,0.01959728,90575.0,90567.0,0.01104154]
[1768056145636,0.01959728,90575.0,90566.0,0.01104167]
[1768056146588,0.01959728,90575.0,90567.0,0.01104154]
[1768056147284,0.01959728,90575.0,90565.0,0.01104179]
[1768056147692,0.01959728,90575.0,90564.0,0.05821034]
[1768056147841,0.01959728,90575.0,90565.0,0.01104179]
[1768056148247,0.01959728,90575.0,90564.0,0.05821034]
[1768056148626,0.01959728,90575.0,90564.0,0.04716843]
[1768056148828,0.01959728,90575.0,90564.0,0.05821034]
[1768056149683,0.01959728,90575.0,90565.0,0.01104179]
[1768056149855,0.01959728,90575.0,90564.0,0.04716843]
[1768056150555,0.01959728,90575.0,90564.0,0.05821034]
[1768056151622,0.01959728,90575.0,90565.0,0.01104179]
[1768056152046,0.01002159,90575.0,90565.0,0.01104179]
[1768056152659,0.01002159,90575.0,90564.0,0.04716843]
[1768056153250,0.01002159,90575.0,90564.0,0.05821034]
[1768056153448,0.01002159,90575.0,90564.0,0.04716843]
[1768056153659,0.00993127,90575.0,90564.0,0.04716843]
[1768056157268,0.02097184,90575.0,90564.0,0.04716843]
[1768056158111,0.00993127,90575.0,90564.0,0.04716843]
[1768056158332,0.02097184,90575.0,90564.0,0.04716843]
[1768056158537,0.02097184,90575.0,90563.0,0.00020992]
[1768056158955,0.01104069,90574.0,90563.0,0.00020992]
[1768056159153,0.02097184,90575.0,90563.0,0.00020992]
[1768056159538,0.01104069,90574.0,90563.0,0.00020992]
[1768056160145,0.01104118,90570.0,90563.0,0.00020992]
[1768056160348,0.05630586,90571.0,90563.0,0.00016392]
[1768056161959,0.0452648,90571.0,90563.0,0.00016392]
[1768056163663,0.01104118,90570.0,90563.0,0.00016392]
[1768056164037,0.05630586,90571.0,90563.0,0.00016392]
[1768056164251,0.01104106,90571.0,90563.0,0.00016392]
[1768056164461,0.01104093,90572.0,90563.0,0.00016392]
[1768056165122,0.01104106,90571.0,90563.0,0.00016392]
[1768056165688,0.01104093,90572.0,90563.0,0.00016392]
[1768056167507,0.01104069,90574.0,90563.0,0.00016392]
[1768056167682,0.01104081,90573.0,90563.0,0.00016392]
[1768056171192,0.01104069,90574.0,90563.0,0.00016392]
[1768056171418,0.02097184,90575.0,90563.0,0.00016392]
[1768056171819,0.01104069,90574.0,90563.0,0.00016392]
[1768056172217,0.02097184,90575.0,90563.0,0.00016392]
[1768056173194,0.01104069,90574.0,90563.0,0.00016392]
[1768056173458,0.02097184,90575.0,90563.0,0.00016392]
[1768056174576,0.01104069,90574.0,90563.0,0.00016392]
[1768056174980,0.02097184,90575.0,90563.0,0.00016392]
[1768056176573,0.01104069,90574.0,90563.0,0.00016392]
[1768056176738,0.01104081,90573.0,90563.0,0.00016392]
[1768056178018,0.01104069,90574.0,90563.0,0.00016392]
[1768056179669,0.02097184,90575.0,90563.0,0.00016392]
[1768056180920,0.00993127,90575.0,90563.0,0.00016392]
[1768056181885,0.00993127,90575.0,90565.0,0.04726975]
[1768056182089,0.00993127,90575.0,90565.0,0.04660122]
[1768056185456,0.02097184,90575.0,90565.0,0.04660122]
[1768056186138,0.01104069,90574.0,90565.0,0.04660122]
[1768056186363,0.02097184,90575.0,90565.0,0.04660122]
[1768056187233,0.00993127,90575.0,90565.0,0.04660122]
[1768056188772,0.02097184,90575.0,90565.0,0.04660122]
[1768056189410,0.00993127,90575.0,90565.0,0.04660122]
[1768056189924,0.06513422,90575.0,90563.0,0.00016392]
[1768056190123,0.01104069,90574.0,90563.0,0.00016392]
[1768056190329,0.01104081,90573.0,90563.0,0.00011882]
[1768056190763,0.01104081,90573.0,90560.0,0.21973196]
[1768056190929,0.01104069,90574.0,90560.0,0.0110424]
[1768056191547,0.00993127,90575.0,90561.0,0.01104228]
[1768056191548,0.02097184,90575.0,90561.0,0.01104228]
[1768056191773,0.01104069,90574.0,90560.0,0.0110424]
[1768056192744,0.01104069,90574.0,90561.0,0.01104228]
[1768056193467,0.01104081,90573.0,90560.0,0.0110424]
[1768056193673,0.01104081,90573.0,90559.0,0.08191357]
[1768056194101,0.01104093,90572.0,90559.0,0.07087105]
[1768056194224,0.01104093,90572.0,90559.0,0.08191357]
[1768056194440,0.01104081,90573.0,90560.0,0.21973196]
[1768056194642,0.00993127,90575.0,90566.0,0.04875105]
[1768056194948,0.00993127,90575.0,90566.0,0.05979272]
[1768056195150,0.00993127,90575.0,90568.0,0.01104142]
[1768056195322,0.00993127,90575.0,90567.0,0.05979259]
[1768056195967,0.00993127,90575.0,90568.0,0.01104142]
[1768056196325,0.00993127,90575.0,90567.0,0.05979259]
[1768056196746,0.00993127,90575.0,90568.0,0.01104142]
[1768056196949,0.00993127,90575.0,90567.0,0.05979259]
[1768056197151,0.00993127,90575.0,90568.0,0.01104142]
[1768056198711,0.00993127,90575.0,90567.0,0.04875105]
[1768056200929,0.00993127,90575.0,90567.0,0.05979259]
[1768056201349,0.00993127,90575.0,90567.0,0.059639]
[1768056202357,0.00993127,90575.0,90568.0,0.01104142]
[1768056202561,0.00893227,90575.0,90567.0,0.059639]
[1768056202762,0.00893227,90575.0,90567.0,0.04859746]
[1768056203075,0.00893227,90575.0,90568.0,0.01104142]
[1768056203267,0.00893227,90575.0,90567.0,0.059639]
[1768056203464,0.00893227,90575.0,90567.0,0.04859746]
[1768056203626,0.00893227,90575.0,90567.0,0.059639]
[1768056203825,0.00893227,90575.0,90567.0,0.04859746]
[1768056204228,0.00893227,90575.0,90567.0,0.059639]
[1768056204468,0.00893227,90575.0,90568.0,0.01104142]
[1768056205822,0.00051718,90576.0,90567.0,0.059639]
[1768056206017,0.00051718,90576.0,90568.0,0.01104142]
[1768056207214,0.00051718,90576.0,90567.0,0.04859746]
[1768056207424,0.00051718,90576.0,90567.0,0.04855237]
[1768056209337,0.00051718,90576.0,90562.0,0.04875105]
[1768056209527,0.00051718,90576.0,90565.0,0.01104179]
[1768056209726,0.00051718,90576.0,90564.0,0.01104191]
[1768056211217,0.00051718,90576.0,90565.0,0.01104179]
[1768056211846,0.00051718,90576.0,90564.0,0.01104191]
[1768056212617,0.00051718,90576.0,90563.0,0.01104203]
[1768056212830,0.01155763,90576.0,90563.0,0.01104203]
[1768056213244,0.00051718,90576.0,90562.0,0.0597932]
[1768056213660,0.01155763,90576.0,90563.0,0.01104203]
[1768056214249,0.01155763,90576.0,90562.0,0.0597932]
[1768056214449,0.00051718,90576.0,90563.0,0.01104203]
[1768056215121,0.00051718,90576.0,90564.0,0.01104191]
[1768056216283,0.00051718,90576.0,90563.0,0.01104203]
[1768056217303,0.00051718,90576.0,90564.0,0.01104191]
[1768056217504,0.00051718,90576.0,90563.0,0.01094216]
[1768056218684,0.00051718,90576.0,90564.0,0.01104191]
[1768056218987,0.00051718,90576.0,90563.0,0.01094216]
[1768056219637,0.00051718,90576.0,90564.0,0.01104191]
[1768056220057,0.00051718,90576.0,90563.0,0.01094216]
[1768056220463,0.00051718,90576.0,90564.0,0.01104191]
[1768056220697,0.00051718,90576.0,90565.0,0.01104179]
[1768056221385,0.00051718,90576.0,90564.0,0.01104191]
[1768056221926,0.00051718,90576.0,90565.0,0.01104179]
[1768056223038,0.00051718,90576.0,90563.0,0.01104203]
[1768056223393,0.00051718,90576.0,90564.0,0.01104191]
[1768056223712,0.00051718,90576.0,90563.0,0.01104203]
[1768056224703,0.00051718,90576.0,90564.0,0.01104191]
[1768056224962,0.01104057,90575.0,90562.0,0.04875105]
[1768056225938,0.01155763,90576.0,90562.0,0.05963967]
[1768056226272,0.01104057,90575.0,90562.0,0.04859752]
[1768056226405,0.01155763,90576.0,90562.0,0.05963967]
[1768056226601,0.01155763,90576.0,90562.0,0.05948615]
[1768056228398,0.00051718,90576.0,90563.0,0.01104203]
[1768056228999,0.01155763,90576.0,90562.0,0.05948615]
[1768056229499,0.01104057,90575.0,90562.0,0.048444]
[1768056229700,0.01155763,90576.0,90562.0,0.05948615]
[1768056229701,0.01104045,90576.0,90562.0,0.05948615]
[1768056229924,0.00051233,90575.0,90562.0,0.05948615]
[1768056230592,0.0115529,90575.0,90562.0,0.04829048]
[1768056231147,0.04951481,90574.0,90559.0,0.02212]
[1768056231356,0.04951481,90574.0,90560.0,0.21973196]
[1768056231558,0.01104081,90573.0,90560.0,0.21973196]
[1768056232760,0.06031238,90573.0,90560.0,0.21973196]
[1768056232985,0.01104093,90572.0,90560.0,0.21973196]
[1768056233674,0.01104106,90571.0,90560.0,0.21973196]
[1768056233882,0.01104093,90572.0,90560.0,0.21973196]
[1768056234687,0.01104106,90571.0,90560.0,0.21973196]
[1768056234927,0.01104093,90572.0,90560.0,0.21973196]
[1768056235515,0.01104106,90571.0,90560.0,0.21973196]
[1768056235917,0.01104093,90572.0,90560.0,0.21973196]
[1768056237885,0.06031238,90573.0,90560.0,0.21973196]
[1768056238472,0.01104093,90572.0,90560.0,0.21973196]
[1768056238674,0.06031238,90573.0,90560.0,0.21973196]
[1768056240068,0.04927157,90573.0,90560.0,0.23077436]
[1768056240354,0.01104069,90574.0,90560.0,0.21973196]
[1768056240996,0.0115529,90575.0,90560.0,0.23077436]
[1768056241156,0.01104069,90574.0,90561.0,0.01104228]
[1768056241368,0.0115529,90575.0,90561.0,0.01104228]
[1768056242077,0.01104069,90574.0,90560.0,0.23077436]
[1768056242679,0.0115529,90575.0,90561.0,0.01104228]
[1768056243429,0.00051233,90575.0,90561.0,0.01104228]
[1768056244199,0.0115529,90575.0,90561.0,0.01104228]
[1768056244999,0.0115529,90575.0,90560.0,0.23077436]
[1768056245000,0.01104069,90574.0,90560.0,0.23077436]
[1768056245233,0.01104069,90574.0,90560.0,0.23062085]
[1768056245640,0.01104069,90574.0,90560.0,0.23046735]
[1768056245849,0.01104081,90573.0,90560.0,0.21942495]
[1768056246052,0.01104069,90574.0,90560.0,0.21927145]
[1768056246246,0.01104081,90573.0,90560.0,0.21927145]
[1768056246648,0.01104093,90572.0,90560.0,0.21927145]
[1768056246887,0.01104081,90573.0,90560.0,0.21927145]
[1768056247094,0.01104093,90572.0,90560.0,0.21927145]
[1768056247471,0.01104081,90573.0,90560.0,0.21927145]
[1768056247690,0.01104093,90572.0,90560.0,0.21927145]
[1768056248306,0.01104081,90573.0,90560.0,0.21927145]
[1768056248506,0.01104093,90572.0,90560.0,0.21927145]
[1768056248760,0.01104106,90571.0,90560.0,0.21927145]
[1768056248932,0.01104093,90572.0,90560.0,0.21927145]
[1768056249766,0.01104081,90573.0,90560.0,0.21927145]
[1768056250002,0.01104093,90572.0,90559.0,0.02212]
[1768056250211,0.01104118,90570.0,90560.0,0.21973196]
[1768056250589,0.01104118,90570.0,90559.0,0.02212]
[1768056250907,0.01104106,90571.0,90559.0,0.02212]
[1768056252178,0.01104106,90571.0,90559.0,0.07122281]
[1768056252400,0.01104118,90570.0,90559.0,0.07122281]
[1768056254195,0.0110413,90569.0,90559.0,0.07106931]
[1768056254417,0.01104118,90570.0,90559.0,0.07106931]